Workbook

Sheet 横長
A1: 給与支給明細書 | N1: 年 | Q1: 月分 | U1: 支給年月日 | AB1: 年 | AE1: 月 | AH1: 日 | AK1: コード | AN1: A011 | AT1: 氏名 | AV1: =LOOKUP(code1,社員マスタ,氏名) -> 東京 花子
B3: 勤怠 | F3: 出勤日数 | N3: 欠勤日数 | V3: 有給休暇 | AD3: 代休日数
F4: 残業時間 | J4: 2 | N4: 早出残業 | V4: 早朝深夜
B5: 支給額 | F5: 基本給 | J5: =LOOKUP(code1,社員マスタ,基本給) -> 200001 | N5: 残業手当 | R5: =J5/(8*21)*1.25*J4 -> 2976.205357 | V5: 通勤手当 | Z5: =LOOKUP(code1,社員マスタ,通勤手当) -> 12010 | AD5: 住宅手当 | AH5: =LOOKUP(code1,社員マスタ,通勤手当) -> 12010 | AL5: 家族手当 | AP5: =LOOKUP(code1,社員マスタ,家族手当) -> 5010 | AT5: 通勤費 | AX5: =LOOKUP(code1,社員マスタ,通勤手当) -> 12010
F7: 計 | J7: =IF(J5+R5+Z5+AH5+AP5+AX5+J6+R6+Z6+AH6+AP6+AX6>0,J5+R5+Z5+AH5+AP5+AX5+J6+R6+Z6+AH6+AP6+AX6,"") -> 244017.2054
A8: 課税対象額 | F8: 計 | J8: =J7-AX5-J9-R9-Z9-AH9 -> 204257.1193
B9: 控除額 | F9: 健康保険 | J9: =LOOKUP(code1,社員マスタ,健康保険) -> 7010 | N9: 介護保険 | R9: =LOOKUP(code1,社員マスタ,介護保険) -> 2510 | V9: 厚生年金 | Z9: =LOOKUP(code1,社員マスタ,厚生年金) -> 17010 | AD9: 雇用保険 | AH9: =J7*(5/1000) -> 1220.086027
F10: 所得税 | J10: =GenSenTax(課税対象額,LOOKUP(code1,社員マスタ,扶養人数)) -> 4190 | N10: 住民税 | R10: =LOOKUP(code1,社員マスタ,住民税) -> 4010
F11: 計 | J11: =J9+R9+Z9+AH9+J10+R10 -> 35950.08603
A12: 差引支給額 | J12: =N(J7)-AX5-J9-R9-Z9-AH9 -> 204257.1193
A14: 給与支給明細書 | N14: 年 | Q14: 月分 | U14: 支給年月日 | AB14: 年 | AE14: 月 | AH14: 日 | AK14: コード | AN14: A006 | AT14: 氏名 | AV14: =LOOKUP(code2,社員マスタ,氏名) -> 埼玉 ４男
B16: 勤怠 | F16: 出勤日数 | N16: 欠勤日数 | V16: 有給休暇 | AD16: 代休日数
F17: 残業時間 | J17: 2 | N17: 早出残業 | V17: 早朝深夜
B18: 支給額 | F18: 基本給 | J18: =LOOKUP(code2,社員マスタ,基本給) -> 960 | N18: 残業手当 | R18: =J18/(8*21)*1.25*J17 -> 14.28571429 | V18: 通勤手当 | Z18: =LOOKUP(code2,社員マスタ,通勤手当) -> 12005 | AD18: 住宅手当 | AH18: =LOOKUP(code2,社員マスタ,住宅手当) -> 10005 | AL18: 家族手当 | AP18: =LOOKUP(code2,社員マスタ,家族手当) -> 5005 | AT18: 通勤費 | AX18: =LOOKUP(code2,社員マスタ,通勤手当) -> 12005
F20: 計 | J20: =IF(J18+R18+Z18+AH18+AP18+AX18+J19+R19+Z19+AH19+AP19+AX19>0,J18+R18+Z18+AH18+AP18+AX18+J19+R19+Z19+AH19+AP19+AX19,"") -> 39994.28571
A21: 課税対象額 | F21: 計 | J21: =J20-AX18-J22-R22-Z22-AH22 -> 1274.314286
B22: 控除額 | F22: 健康保険 | J22: =LOOKUP(code2,社員マスタ,健康保険) -> 7005 | N22: 介護保険 | R22: =LOOKUP(code2,社員マスタ,介護保険) -> 2505 | V22: 厚生年金 | Z22: =LOOKUP(code2,社員マスタ,厚生年金) -> 17005 | AD22: 雇用保険 | AH22: =J20*(5/1000) -> 199.9714286
F23: 所得税 | J23: =GenSenTax(課税対象額2,LOOKUP(code2,社員マスタ,扶養人数)) -> 0 | N23: 住民税 | R23: =LOOKUP(code1,社員マスタ,住民税) -> 4010
F24: 計 | J24: =J22+R22+Z22+AH22+J23+R23 -> 30724.97143
A25: 差引支給額 | J25: =IF(N(J20)-N(J24)=0,"",N(J20)-N(J24)) -> 9269.314286
A27: 給与支給明細書 | N27: 年 | Q27: 月分 | U27: 支給年月日 | AB27: 年 | AE27: 月 | AH27: 日 | AK27: コード | AN27: A020 | AT27: 氏名 | AV27: =LOOKUP(code3,社員マスタ,氏名) -> 大坂 花子
B29: 勤怠 | F29: 出勤日数 | N29: 欠勤日数 | V29: 有給休暇 | AD29: 代休日数
F30: 残業時間 | J30: 2 | N30: 早出残業 | V30: 早朝深夜
B31: 支給額 | F31: 基本給 | J31: =LOOKUP(code3,社員マスタ,基本給) -> 124300 | N31: 残業手当 | R31: =J31/(8*21)*1.25*J30 -> 1849.702381 | V31: 通勤手当 | Z31: =LOOKUP(code3,社員マスタ,通勤手当) -> 12019 | AD31: 住宅手当 | AH31: =LOOKUP(code3,社員マスタ,住宅手当) -> 10019 | AL31: 家族手当 | AP31: =LOOKUP(code3,社員マスタ,家族手当) -> 5019 | AT31: 通勤費 | AX31: =LOOKUP(code3,社員マスタ,通勤手当) -> 12019
F33: 計 | J33: =IF(J31+R31+Z31+AH31+AP31+AX31+J32+R32+Z32+AH32+AP32+AX32>0,J31+R31+Z31+AH31+AP31+AX31+J32+R32+Z32+AH32+AP32+AX32,"") -> 165225.7024
A34: 課税対象額 | F34: 計 | J34: =J33-AX31-J35-R35-Z35-AH35 -> 125823.5739
B35: 控除額 | F35: 健康保険 | J35: =LOOKUP(code3,社員マスタ,健康保険) -> 7019 | N35: 介護保険 | R35: =LOOKUP(code3,社員マスタ,介護保険) -> 2519 | V35: 厚生年金 | Z35: =LOOKUP(code3,社員マスタ,厚生年金) -> 17019 | AD35: 雇用保険 | AH35: =J33*(5/1000) -> 826.1285119
F36: 所得税 | J36: =GenSenTax(課税対象額3,LOOKUP(code3,社員マスタ,扶養人数)) -> 1800 | N36: 住民税 | R36: =LOOKUP(code3,社員マスタ,住民税) -> 4019
F37: 計 | J37: =J35+R35+Z35+AH35+J36+R36 -> 33202.12851
A38: 差引支給額 | J38: =IF(N(J33)-N(J37)=0,"",N(J33)-N(J37)) -> 132023.5739
B41: 項目説明
D42: ：社員マスタの値をコードから索引して該当値が表示されます
D43: ：は手入力を行う
D44: ：自動計算されます
B45: 残業手当：基本給から日給を算出してから計算しています
E46: 日給単価が決まっているときは、計算値では固定値に書き換えてください
E47: 早出残業、早朝深夜には対応していません。自社の計算方法を入力してください。
E48: シート保護はしていません、修正して使用する時はコピーして利用。

Sheet 社員マスタ
A1: 個人コード | B1: 氏名 | C1: 基本給 | D1: 残業手当 | E1: 通勤手当 | F1: 住宅手当 | G1: 家族手当 | H1: 健康保険 | I1: 介護保険 | J1: 厚生年金 | K1: 住民税 | L1: 扶養人数
A2: A001 | B2: 埼玉 太郎 | C2: 200000 | E2: 12000 | F2: 10000 | G2: 5000 | H2: 7000 | I2: 2500 | J2: 17000 | K2: 4000 | L2: 0
A3: A002 | B3: 埼玉 花子 | C3: 200000 | E3: 12001 | F3: 10001 | G3: 5001 | H3: 7001 | I3: 2501 | J3: 17001 | K3: 4001 | L3: 0
A4: A003 | B4: 埼玉 次郎 | C4: 200000 | E4: 12002 | F4: 10002 | G4: 5002 | H4: 7002 | I4: 2502 | J4: 17002 | K4: 4002 | L4: 0
A5: A004 | B5: 埼玉 ２男 | C5: 200000 | E5: 12003 | F5: 10003 | G5: 5003 | H5: 7003 | I5: 2503 | J5: 17003 | K5: 4003 | L5: 0
A6: A005 | B6: 埼玉 ３男 | C6: 200000 | E6: 12004 | F6: 10004 | G6: 5004 | H6: 7004 | I6: 2504 | J6: 17004 | K6: 4004 | L6: 2
A7: A006 | B7: 埼玉 ４男 | C7: 960 | E7: 12005 | F7: 10005 | G7: 5005 | H7: 7005 | I7: 2505 | J7: 17005 | K7: 4005 | L7: 1
A8: A007 | B8: 埼玉 ５男 | C8: 200000 | E8: 12006 | F8: 10006 | G8: 5006 | H8: 7006 | I8: 2506 | J8: 17006 | K8: 4006 | L8: 0
A9: A008 | B9: 埼玉 ６男 | C9: 200000 | D9: 11 | E9: 12007 | F9: 10007 | G9: 5007 | H9: 7007 | I9: 2507 | J9: 17007 | K9: 4007 | L9: 0
A10: A009 | B10: 埼玉 ７男 | C10: 200000 | E10: 12008 | F10: 10008 | G10: 5008 | H10: 7008 | I10: 2508 | J10: 17008 | K10: 4008 | L10: 0
A11: A010 | B11: 東京 太郎 | C11: 250000 | E11: 12009 | F11: 10009 | G11: 5009 | H11: 7009 | I11: 2509 | J11: 17009 | K11: 4009 | L11: 0
A12: A011 | B12: 東京 花子 | C12: 200001 | E12: 12010 | F12: 10010 | G12: 5010 | H12: 7010 | I12: 2510 | J12: 17010 | K12: 4010 | L12: 1
A13: A012 | B13: 東京 次郎 | C13: 200000 | E13: 12011 | F13: 10011 | G13: 5011 | H13: 7011 | I13: 2511 | J13: 17011 | K13: 4011 | L13: 0
A14: A013 | B14: 東京 ２男 | C14: 200000 | E14: 12012 | F14: 10012 | G14: 5012 | H14: 7012 | I14: 2512 | J14: 17012 | K14: 4012 | L14: 0
A15: A014 | B15: 東京 ３男 | C15: 200000 | E15: 12013 | F15: 10013 | G15: 5013 | H15: 7013 | I15: 2513 | J15: 17013 | K15: 4013 | L15: 0
A16: A015 | B16: 東京 ４男 | C16: 200000 | E16: 12014 | F16: 10014 | G16: 5014 | H16: 7014 | I16: 2514 | J16: 17014 | K16: 4014 | L16: 0
A17: A016 | B17: 東京 ５男 | C17: 200000 | E17: 12015 | F17: 10015 | G17: 5015 | H17: 7015 | I17: 2515 | J17: 17015 | K17: 4015 | L17: 0
A18: A017 | B18: 東京 ６男 | C18: 200000 | E18: 12016 | F18: 10016 | G18: 5016 | H18: 7016 | I18: 2516 | J18: 17016 | K18: 4016 | L18: 0
A19: A018 | B19: 東京 ７男 | C19: 200000 | E19: 12017 | F19: 10017 | G19: 5017 | H19: 7017 | I19: 2517 | J19: 17017 | K19: 4017 | L19: 0
A20: A019 | B20: 大坂 太郎 | C20: 240000 | E20: 12018 | F20: 10018 | G20: 5018 | H20: 7018 | I20: 2518 | J20: 17018 | K20: 4018 | L20: 0
A21: A020 | B21: 大坂 花子 | C21: 124300 | E21: 12019 | F21: 10019 | G21: 5019 | H21: 7019 | I21: 2519 | J21: 17019 | K21: 4019 | L21: 0
A22: A021 | B22: 大坂 次郎 | C22: 200000 | E22: 12020 | F22: 10020 | G22: 5020 | H22: 7020 | I22: 2520 | J22: 17020 | K22: 4020 | L22: 0
A23: A022 | B23: 大坂 ２男 | C23: 200000 | E23: 12021 | F23: 10021 | G23: 5021 | H23: 7021 | I23: 2521 | J23: 17021 | K23: 4021 | L23: 0
A24: A023 | B24: 大坂 ３男 | C24: 200000 | E24: 12022 | F24: 10022 | G24: 5022 | H24: 7022 | I24: 2522 | J24: 17022 | K24: 4022 | L24: 0
A25: A024 | B25: 大坂 ４男 | C25: 200000 | E25: 12023 | F25: 10023 | G25: 5023 | H25: 7023 | I25: 2523 | J25: 17023 | K25: 4023 | L25: 0
A26: A025 | B26: 大坂 ５男 | C26: 200000 | E26: 12024 | F26: 10024 | G26: 5024 | H26: 7024 | I26: 2524 | J26: 17024 | K26: 4024 | L26: 0
A27: A026 | B27: 大坂 ６男 | C27: 200000 | E27: 12025 | F27: 10025 | G27: 5025 | H27: 7025 | I27: 2525 | J27: 17025 | K27: 4025 | L27: 0
A28: A027 | B28: 大坂 ７男 | C28: 200000 | E28: 12026 | F28: 10026 | G28: 5026 | H28: 7026 | I28: 2526 | J28: 17026 | K28: 4026 | L28: 0

Sheet 伝票風
D1: 常勤者用 | P1: パート用
B4: 給与支給明細書 | N4: 給与支給明細書 | AT4: 氏名 | AV4: =LOOKUP(code1,社員マスタ!A3:A29,社員マスタ!B3:B29) -> 東京 花子
D5: 年 | G5: 月分 | P5: 年 | S5: 月分
B6: a005 | D6: =LOOKUP(ncd,社員マスタ!A2:A28,社員マスタ!B2:B28)&" 様" -> 埼玉 ３男 様 | N6: a006 | P6: =LOOKUP(_ncd2,[0]!code_all,[0]!name_a)&" 様" -> 埼玉 ４男 様
B7: 出勤日数 | F7: 20 | H7: 日 | N7: 出勤日数 | R7: 15 | T7: 日
B8: 欠勤日数 | F8: 1 | H8: 日 | N8: 欠勤日数 | R8: 0 | T8: 日
B9: 労働時間 | H9: 時間 | N9: 労働時間 | R9: 100 | T9: 時間
B10: 時間外労働時間 | F10: 4 | H10: 時間 | N10: 時間外労働時間 | R10: 5 | T10: 時間
B12: 基本給 | F12: =LOOKUP(ycode1,社員マスタ,基本給) -> 200000 | N12: 基本給 | R12: =LOOKUP(ycode2,社員マスタ,基本給)*de_day1 -> 14400
B13: 残業手当 | F13: =ROUND(F12/(8*21)*1.25*F10,0) -> 5952 | N13: 残業手当 | R13: =ROUND(R12/(8*21)*1.25*R10,0) -> 536
B14: 通勤手当 | F14: =LOOKUP(ycode1,社員マスタ,通勤手当) -> 12004 | N14: 通勤手当 | R14: =LOOKUP(ycode2,社員マスタ,通勤手当) -> 12005
B15: 住宅手当 | F15: =LOOKUP(ycode1,社員マスタ,住宅手当) -> 10004 | N15: 住宅手当 | R15: =LOOKUP(ycode2,社員マスタ,住宅手当) -> 10005
B16: 家族手当 | F16: =LOOKUP(code1,社員マスタ,家族手当) -> 5010 | N16: 家族手当 | R16: =LOOKUP(code2,社員マスタ,家族手当) -> 5005
B20: 支給額計 | F20: =SUM(F12:I19) -> 232970 | N20: 支給額計 | R20: =SUM(R12:U19) -> 41951
B22: 健康保険 | F22: =LOOKUP(ycode1,社員マスタ,健康保険) -> 7004 | N22: 健康保険 | R22: =LOOKUP(ycode2,社員マスタ,健康保険) -> 7005
B23: 厚生年金 | F23: =LOOKUP(code1,社員マスタ,厚生年金) -> 17010 | N23: 厚生年金 | R23: =LOOKUP(code2,社員マスタ,厚生年金) -> 17005
B24: 介護保険 | F24: =LOOKUP(ycode1,社員マスタ,介護保険) -> 2504 | N24: 介護保険 | R24: =LOOKUP(ycode2,社員マスタ,介護保険) -> 2505
B25: 雇用保険 | F25: =ROUND(支給額計*(3/1000),0) -> 699 | N25: 雇用保険 | R25: =ROUND(支給額計*(3/1000),0) -> 699
B26: 所得税 | F26: =GenSenTax(課税対象額,LOOKUP(ycode1,社員マスタ,扶養人数)) -> 2580 | N26: 所得税 | R26: =GenSenTax(課税対象額,LOOKUP(ycode2,社員マスタ,扶養人数)) -> 4190
B27: 控除額計 | F27: =SUM(F22:I26) -> 29797 | N27: 控除額計 | R27: =SUM(R22:U26) -> 31404
B30: 課税対象額 | F30: =支給額計-F22-F23-F24-F25 -> 205753 | N30: 課税対象額 | R30: =支給額計-R22-R23-R24-R25 -> 205756
B31: 差引支給額 | F31: =支給額計-F27 -> 203173 | N31: 差引支給額 | R31: =支給額計1-R27 -> 10547
B37: 項目説明
D38: ：社員マスタの値をコードから索引して該当値が表示されます
D39: ：は手入力を行う
D40: ：自動計算されます
B41: 残業手当：基本給から日給を算出してから計算しています
E42: 日給単価が決まっているときは、計算値では固定値に書き換えてください
E43: 早出残業、早朝深夜には対応していません。自社の計算方法を入力してください。
E44: シート保護はしていません、修正して使用する時はコピーして利用。

Sheet 月額表
B1: 給与所得の源泉徴収税額表（令和８年分） 参考です 所得税は計算式によるものです
B2: 月 額 表（平成24年３月31日財務省告示第115号別表第一（令和７年４月30日財務省告示第122号改正））
B3: その月の社会保 | D3: 甲
B4: 険料等控除後の | D4: 扶 養 親 族 等 の 数 | L4: 乙
B5: 給与等の金額 | D5: 0 人 | E5: 1 人 | F5: 2 人 | G5: 3 人 | H5: 4 人 | I5: 5 人 | J5: 6 人 | K5: 7 人
B6: 以 上 | C6: 未 満 | D6: 税 額 | L6: 税 額
B7: 円 | C7: 円 | D7: 円 | E7: 円 | F7: 円 | G7: 円 | H7: 円 | I7: 円 | J7: 円 | K7: 円 | L7: 円
B8: 105000 | C8: 円未満 | D8: 0 | E8: 0 | F8: 0 | G8: 0 | H8: 0 | I8: 0 | J8: 0 | K8: 0 | L8: その月の社会保険料等控除後の給与等の金額の3.063％に相当する金額
A10: 1 | B10: 105000 | C10: 107000 | D10: 170 | E10: 0 | F10: 0 | G10: 0 | H10: 0 | I10: 0 | J10: 0 | K10: 0 | L10: 3800
A11: 2 | B11: 107000 | C11: 109000 | D11: 280 | E11: 0 | F11: 0 | G11: 0 | H11: 0 | I11: 0 | J11: 0 | K11: 0 | L11: 3800
A12: 3 | B12: 109000 | C12: 111000 | D12: 380 | E12: 0 | F12: 0 | G12: 0 | H12: 0 | I12: 0 | J12: 0 | K12: 0 | L12: 3900
A13: 4 | B13: 111000 | C13: 113000 | D13: 480 | E13: 0 | F13: 0 | G13: 0 | H13: 0 | I13: 0 | J13: 0 | K13: 0 | L13: 4000
A14: 5 | B14: 113000 | C14: 115000 | D14: 580 | E14: 0 | F14: 0 | G14: 0 | H14: 0 | I14: 0 | J14: 0 | K14: 0 | L14: 4100
A16: 6 | B16: 115000 | C16: 117000 | D16: 680 | E16: 0 | F16: 0 | G16: 0 | H16: 0 | I16: 0 | J16: 0 | K16: 0 | L16: 4100
A17: 7 | B17: 117000 | C17: 119000 | D17: 790 | E17: 0 | F17: 0 | G17: 0 | H17: 0 | I17: 0 | J17: 0 | K17: 0 | L17: 4200
A18: 8 | B18: 119000 | C18: 121000 | D18: 890 | E18: 0 | F18: 0 | G18: 0 | H18: 0 | I18: 0 | J18: 0 | K18: 0 | L18: 4300
A19: 9 | B19: 121000 | C19: 123000 | D19: 990 | E19: 0 | F19: 0 | G19: 0 | H19: 0 | I19: 0 | J19: 0 | K19: 0 | L19: 4300
A20: 10 | B20: 123000 | C20: 125000 | D20: 1090 | E20: 0 | F20: 0 | G20: 0 | H20: 0 | I20: 0 | J20: 0 | K20: 0 | L20: 4400
A22: 11 | B22: 125000 | C22: 127000 | D22: 1190 | E22: 0 | F22: 0 | G22: 0 | H22: 0 | I22: 0 | J22: 0 | K22: 0 | L22: 4700
A23: 12 | B23: 127000 | C23: 129000 | D23: 1300 | E23: 0 | F23: 0 | G23: 0 | H23: 0 | I23: 0 | J23: 0 | K23: 0 | L23: 5000
A24: 13 | B24: 129000 | C24: 131000 | D24: 1400 | E24: 0 | F24: 0 | G24: 0 | H24: 0 | I24: 0 | J24: 0 | K24: 0 | L24: 5300
A25: 14 | B25: 131000 | C25: 133000 | D25: 1500 | E25: 0 | F25: 0 | G25: 0 | H25: 0 | I25: 0 | J25: 0 | K25: 0 | L25: 5500
A26: 15 | B26: 133000 | C26: 135000 | D26: 1600 | E26: 0 | F26: 0 | G26: 0 | H26: 0 | I26: 0 | J26: 0 | K26: 0 | L26: 5800
A28: 16 | B28: 135000 | C28: 137000 | D28: 1710 | E28: 0 | F28: 0 | G28: 0 | H28: 0 | I28: 0 | J28: 0 | K28: 0 | L28: 6100
A29: 17 | B29: 137000 | C29: 139000 | D29: 1810 | E29: 190 | F29: 0 | G29: 0 | H29: 0 | I29: 0 | J29: 0 | K29: 0 | L29: 6400
A30: 18 | B30: 139000 | C30: 141000 | D30: 1910 | E30: 300 | F30: 0 | G30: 0 | H30: 0 | I30: 0 | J30: 0 | K30: 0 | L30: 6700
A31: 19 | B31: 141000 | C31: 143000 | D31: 2010 | E31: 400 | F31: 0 | G31: 0 | H31: 0 | I31: 0 | J31: 0 | K31: 0 | L31: 7000
A32: 20 | B32: 143000 | C32: 145000 | D32: 2110 | E32: 500 | F32: 0 | G32: 0 | H32: 0 | I32: 0 | J32: 0 | K32: 0 | L32: 7400
A34: 21 | B34: 145000 | C34: 147000 | D34: 2220 | E34: 600 | F34: 0 | G34: 0 | H34: 0 | I34: 0 | J34: 0 | K34: 0 | L34: 7700
A35: 22 | B35: 147000 | C35: 149000 | D35: 2320 | E35: 700 | F35: 0 | G35: 0 | H35: 0 | I35: 0 | J35: 0 | K35: 0 | L35: 8000
A36: 23 | B36: 149000 | C36: 151000 | D36: 2420 | E36: 810 | F36: 0 | G36: 0 | H36: 0 | I36: 0 | J36: 0 | K36: 0 | L36: 8300
A37: 24 | B37: 151000 | C37: 153000 | D37: 2520 | E37: 910 | F37: 0 | G37: 0 | H37: 0 | I37: 0 | J37: 0 | K37: 0 | L37: 8600
A38: 25 | B38: 153000 | C38: 155000 | D38: 2620 | E38: 1010 | F38: 0 | G38: 0 | H38: 0 | I38: 0 | J38: 0 | K38: 0 | L38: 8900
A40: 26 | B40: 155000 | C40: 157000 | D40: 2730 | E40: 1110 | F40: 0 | G40: 0 | H40: 0 | I40: 0 | J40: 0 | K40: 0 | L40: 9200
A41: 27 | B41: 157000 | C41: 159000 | D41: 2830 | E41: 1210 | F41: 0 | G41: 0 | H41: 0 | I41: 0 | J41: 0 | K41: 0 | L41: 9500
A42: 28 | B42: 159000 | C42: 161000 | D42: 2910 | E42: 1300 | F42: 0 | G42: 0 | H42: 0 | I42: 0 | J42: 0 | K42: 0 | L42: 9800
A43: 29 | B43: 161000 | C43: 163000 | D43: 2980 | E43: 1370 | F43: 0 | G43: 0 | H43: 0 | I43: 0 | J43: 0 | K43: 0 | L43: 10100
A44: 30 | B44: 163000 | C44: 165000 | D44: 3050 | E44: 1440 | F44: 0 | G44: 0 | H44: 0 | I44: 0 | J44: 0 | K44: 0 | L44: 10400
A46: 31 | B46: 165000 | C46: 167000 | D46: 3120 | E46: 1510 | F46: 0 | G46: 0 | H46: 0 | I46: 0 | J46: 0 | K46: 0 | L46: 10700
A47: 32 | B47: 167000 | C47: 169000 | D47: 3200 | E47: 1580 | F47: 0 | G47: 0 | H47: 0 | I47: 0 | J47: 0 | K47: 0 | L47: 11000
A48: 33 | B48: 169000 | C48: 171000 | D48: 3270 | E48: 1650 | F48: 0 | G48: 0 | H48: 0 | I48: 0 | J48: 0 | K48: 0 | L48: 11300
A49: 34 | B49: 171000 | C49: 173000 | D49: 3340 | E49: 1730 | F49: 100 | G49: 0 | H49: 0 | I49: 0 | J49: 0 | K49: 0 | L49: 11500
A50: 35 | B50: 173000 | C50: 175000 | D50: 3410 | E50: 1800 | F50: 170 | G50: 0 | H50: 0 | I50: 0 | J50: 0 | K50: 0 | L50: 11800
A52: 36 | B52: 175000 | C52: 177000 | D52: 3480 | E52: 1870 | F52: 250 | G52: 0 | H52: 0 | I52: 0 | J52: 0 | K52: 0 | L52: 12100
A53: 37 | B53: 177000 | C53: 179000 | D53: 3550 | E53: 1940 | F53: 320 | G53: 0 | H53: 0 | I53: 0 | J53: 0 | K53: 0 | L53: 12500
A54: 38 | B54: 179000 | C54: 181000 | D54: 3620 | E54: 2010 | F54: 390 | G54: 0 | H54: 0 | I54: 0 | J54: 0 | K54: 0 | L54: 12800
A55: 39 | B55: 181000 | C55: 183000 | D55: 3700 | E55: 2080 | F55: 460 | G55: 0 | H55: 0 | I55: 0 | J55: 0 | K55: 0 | L55: 13300
A56: 40 | B56: 183000 | C56: 185000 | D56: 3770 | E56: 2150 | F56: 530 | G56: 0 | H56: 0 | I56: 0 | J56: 0 | K56: 0 | L56: 14000
A58: 41 | B58: 185000 | C58: 187000 | D58: 3840 | E58: 2230 | F58: 600 | G58: 0 | H58: 0 | I58: 0 | J58: 0 | K58: 0 | L58: 14700
A59: 42 | B59: 187000 | C59: 189000 | D59: 3910 | E59: 2300 | F59: 670 | G59: 0 | H59: 0 | I59: 0 | J59: 0 | K59: 0 | L59: 15400
A60: 43 | B60: 189000 | C60: 191000 | D60: 3980 | E60: 2370 | F60: 750 | G60: 0 | H60: 0 | I60: 0 | J60: 0 | K60: 0 | L60: 16100
A61: 44 | B61: 191000 | C61: 193000 | D61: 4050 | E61: 2440 | F61: 820 | G61: 0 | H61: 0 | I61: 0 | J61: 0 | K61: 0 | L61: 16800
A62: 45 | B62: 193000 | C62: 195000 | D62: 4120 | E62: 2510 | F62: 890 | G62: 0 | H62: 0 | I62: 0 | J62: 0 | K62: 0 | L62: 17600
A64: 46 | B64: 195000 | C64: 197000 | D64: 4200 | E64: 2580 | F64: 960 | G64: 0 | H64: 0 | I64: 0 | J64: 0 | K64: 0 | L64: 18300
A65: 47 | B65: 197000 | C65: 199000 | D65: 4270 | E65: 2650 | F65: 1030 | G65: 0 | H65: 0 | I65: 0 | J65: 0 | K65: 0 | L65: 19000
A66: 48 | B66: 199000 | C66: 201000 | D66: 4340 | E66: 2730 | F66: 1100 | G66: 0 | H66: 0 | I66: 0 | J66: 0 | K66: 0 | L66: 19700
A67: 49 | B67: 201000 | C67: 203000 | D67: 4410 | E67: 2800 | F67: 1170 | G67: 0 | H67: 0 | I67: 0 | J67: 0 | K67: 0 | L67: 20400
A68: 50 | B68: 203000 | C68: 205000 | D68: 4480 | E68: 2870 | F68: 1250 | G68: 0 | H68: 0 | I68: 0 | J68: 0 | K68: 0 | L68: 21000
A70: 51 | B70: 205000 | C70: 207000 | D70: 4550 | E70: 2940 | F70: 1320 | G70: 0 | H70: 0 | I70: 0 | J70: 0 | K70: 0 | L70: 21700
A71: 52 | B71: 207000 | C71: 209000 | D71: 4630 | E71: 3010 | F71: 1390 | G71: 0 | H71: 0 | I71: 0 | J71: 0 | K71: 0 | L71: 22500
A72: 53 | B72: 209000 | C72: 211000 | D72: 4700 | E72: 3080 | F72: 1460 | G72: 0 | H72: 0 | I72: 0 | J72: 0 | K72: 0 | L72: 23000
A73: 54 | B73: 211000 | C73: 213000 | D73: 4770 | E73: 3150 | F73: 1530 | G73: 0 | H73: 0 | I73: 0 | J73: 0 | K73: 0 | L73: 23600
A74: 55 | B74: 213000 | C74: 215000 | D74: 4840 | E74: 3230 | F74: 1600 | G74: 0 | H74: 0 | I74: 0 | J74: 0 | K74: 0 | L74: 24100
A76: 56 | B76: 215000 | C76: 217000 | D76: 4910 | E76: 3300 | F76: 1670 | G76: 0 | H76: 0 | I76: 0 | J76: 0 | K76: 0 | L76: 24700
A77: 57 | B77: 217000 | C77: 219000 | D77: 4980 | E77: 3370 | F77: 1750 | G77: 130 | H77: 0 | I77: 0 | J77: 0 | K77: 0 | L77: 25300
A78: 58 | B78: 219000 | C78: 221000 | D78: 5050 | E78: 3440 | F78: 1820 | G78: 200 | H78: 0 | I78: 0 | J78: 0 | K78: 0 | L78: 25800
A79: 59 | B79: 221000 | C79: 224000 | D79: 5150 | E79: 3520 | F79: 1910 | G79: 300 | H79: 0 | I79: 0 | J79: 0 | K79: 0 | L79: 26400
A80: 60 | B80: 224000 | C80: 227000 | D80: 5250 | E80: 3630 | F80: 2020 | G80: 400 | H80: 0 | I80: 0 | J80: 0 | K80: 0 | L80: 27500
A82: 61 | B82: 227000 | C82: 230000 | D82: 5360 | E82: 3740 | F82: 2120 | G82: 510 | H82: 0 | I82: 0 | J82: 0 | K82: 0 | L82: 28500
A83: 62 | B83: 230000 | C83: 233000 | D83: 5460 | E83: 3850 | F83: 2240 | G83: 610 | H83: 0 | I83: 0 | J83: 0 | K83: 0 | L83: 29500
A84: 63 | B84: 233000 | C84: 236000 | D84: 5570 | E84: 3950 | F84: 2340 | G84: 720 | H84: 0 | I84: 0 | J84: 0 | K84: 0 | L84: 30500
A85: 64 | B85: 236000 | C85: 239000 | D85: 5680 | E85: 4060 | F85: 2450 | G85: 830 | H85: 0 | I85: 0 | J85: 0 | K85: 0 | L85: 31500
A86: 65 | B86: 239000 | C86: 242000 | D86: 5790 | E86: 4170 | F86: 2550 | G86: 940 | H86: 0 | I86: 0 | J86: 0 | K86: 0 | L86: 32600
A88: 66 | B88: 242000 | C88: 245000 | D88: 5890 | E88: 4280 | F88: 2660 | G88: 1040 | H88: 0 | I88: 0 | J88: 0 | K88: 0 | L88: 33600
A89: 67 | B89: 245000 | C89: 248000 | D89: 6000 | E89: 4380 | F89: 2770 | G89: 1150 | H89: 0 | I89: 0 | J89: 0 | K89: 0 | L89: 34600
A90: 68 | B90: 248000 | C90: 251000 | D90: 6110 | E90: 4490 | F90: 2880 | G90: 1260 | H90: 0 | I90: 0 | J90: 0 | K90: 0 | L90: 35500
A91: 69 | B91: 251000 | C91: 254000 | D91: 6220 | E91: 4590 | F91: 2980 | G91: 1370 | H91: 0 | I91: 0 | J91: 0 | K91: 0 | L91: 36600
A92: 70 | B92: 254000 | C92: 257000 | D92: 6320 | E92: 4710 | F92: 3090 | G92: 1470 | H92: 0 | I92: 0 | J92: 0 | K92: 0 | L92: 37600
A94: 71 | B94: 257000 | C94: 260000 | D94: 6430 | E94: 4810 | F94: 3200 | G94: 1580 | H94: 0 | I94: 0 | J94: 0 | K94: 0 | L94: 38600
A95: 72 | B95: 260000 | C95: 263000 | D95: 6530 | E95: 4920 | F95: 3310 | G95: 1680 | H95: 0 | I95: 0 | J95: 0 | K95: 0 | L95: 39600
A96: 73 | B96: 263000 | C96: 266000 | D96: 6650 | E96: 5020 | F96: 3410 | G96: 1800 | H96: 170 | I96: 0 | J96: 0 | K96: 0 | L96: 40600
A97: 74 | B97: 266000 | C97: 269000 | D97: 6750 | E97: 5140 | F97: 3520 | G97: 1900 | H97: 290 | I97: 0 | J97: 0 | K97: 0 | L97: 41700
A98: 75 | B98: 269000 | C98: 272000 | D98: 6860 | E98: 5240 | F98: 3620 | G98: 2010 | H98: 390 | I98: 0 | J98: 0 | K98: 0 | L98: 42700
A100: 76 | B100: 272000 | C100: 275000 | D100: 6960 | E100: 5350 | F100: 3740 | G100: 2110 | H100: 500 | I100: 0 | J100: 0 | K100: 0 | L100: 43700
A101: 77 | B101: 275000 | C101: 278000 | D101: 7080 | E101: 5450 | F101: 3840 | G101: 2230 | H101: 600 | I101: 0 | J101: 0 | K101: 0 | L101: 44700
A102: 78 | B102: 278000 | C102: 281000 | D102: 7180 | E102: 5560 | F102: 3950 | G102: 2330 | H102: 710 | I102: 0 | J102: 0 | K102: 0 | L102: 45600
A103: 79 | B103: 281000 | C103: 284000 | D103: 7290 | E103: 5670 | F103: 4050 | G103: 2440 | H103: 820 | I103: 0 | J103: 0 | K103: 0 | L103: 46700
A104: 80 | B104: 284000 | C104: 287000 | D104: 7390 | E104: 5780 | F104: 4170 | G104: 2540 | H104: 930 | I104: 0 | J104: 0 | K104: 0 | L104: 47800
A106: 81 | B106: 287000 | C106: 290000 | D106: 7500 | E106: 5880 | F106: 4270 | G106: 2650 | H106: 1030 | I106: 0 | J106: 0 | K106: 0 | L106: 48900
A107: 82 | B107: 290000 | C107: 293000 | D107: 7610 | E107: 5990 | F107: 4380 | G107: 2760 | H107: 1140 | I107: 0 | J107: 0 | K107: 0 | L107: 50000
A108: 83 | B108: 293000 | C108: 296000 | D108: 7720 | E108: 6100 | F108: 4480 | G108: 2870 | H108: 1250 | I108: 0 | J108: 0 | K108: 0 | L108: 51300
A109: 84 | B109: 296000 | C109: 299000 | D109: 7820 | E109: 6210 | F109: 4590 | G109: 2970 | H109: 1360 | I109: 0 | J109: 0 | K109: 0 | L109: 52400
A110: 85 | B110: 299000 | C110: 302000 | D110: 7930 | E110: 6320 | F110: 4700 | G110: 3080 | H110: 1470 | I110: 0 | J110: 0 | K110: 0 | L110: 53600
A112: 86 | B112: 302000 | C112: 305000 | D112: 8060 | E112: 6440 | F112: 4820 | G112: 3210 | H112: 1590 | I112: 0 | J112: 0 | K112: 0 | L112: 54500
A113: 87 | B113: 305000 | C113: 308000 | D113: 8180 | E113: 6570 | F113: 4940 | G113: 3330 | H113: 1720 | I113: 0 | J113: 0 | K113: 0 | L113: 55200
A114: 88 | B114: 308000 | C114: 311000 | D114: 8300 | E114: 6690 | F114: 5060 | G114: 3450 | H114: 1840 | I114: 210 | J114: 0 | K114: 0 | L114: 56100
A115: 89 | B115: 311000 | C115: 314000 | D115: 8550 | E115: 6810 | F115: 5190 | G115: 3570 | H115: 1960 | I115: 340 | J115: 0 | K115: 0 | L115: 56900
A116: 90 | B116: 314000 | C116: 317000 | D116: 8790 | E116: 6930 | F116: 5310 | G116: 3700 | H116: 2080 | I116: 460 | J116: 0 | K116: 0 | L116: 57700
A118: 91 | B118: 317000 | C118: 320000 | D118: 9040 | E118: 7060 | F118: 5430 | G118: 3820 | H118: 2210 | I118: 580 | J118: 0 | K118: 0 | L118: 58500
A119: 92 | B119: 320000 | C119: 323000 | D119: 9280 | E119: 7180 | F119: 5550 | G119: 3940 | H119: 2330 | I119: 700 | J119: 0 | K119: 0 | L119: 59500
A120: 93 | B120: 323000 | C120: 326000 | D120: 9530 | E120: 7300 | F120: 5680 | G120: 4060 | H120: 2450 | I120: 830 | J120: 0 | K120: 0 | L120: 60500
A121: 94 | B121: 326000 | C121: 329000 | D121: 9770 | E121: 7420 | F121: 5800 | G121: 4190 | H121: 2570 | I121: 950 | J121: 0 | K121: 0 | L121: 61600
A122: 95 | B122: 329000 | C122: 332000 | D122: 10020 | E122: 7550 | F122: 5920 | G122: 4310 | H122: 2700 | I122: 1070 | J122: 0 | K122: 0 | L122: 62600
A124: 96 | B124: 332000 | C124: 335000 | D124: 10260 | E124: 7670 | F124: 6040 | G124: 4430 | H124: 2820 | I124: 1190 | J124: 0 | K124: 0 | L124: 63700
A125: 97 | B125: 335000 | C125: 338000 | D125: 10510 | E125: 7790 | F125: 6170 | G125: 4550 | H125: 2940 | I125: 1320 | J125: 0 | K125: 0 | L125: 64700
A126: 98 | B126: 338000 | C126: 341000 | D126: 10750 | E126: 7910 | F126: 6290 | G126: 4680 | H126: 3060 | I126: 1440 | J126: 0 | K126: 0 | L126: 65800
A127: 99 | B127: 341000 | C127: 344000 | D127: 11000 | E127: 8040 | F127: 6410 | G127: 4800 | H127: 3190 | I127: 1560 | J127: 0 | K127: 0 | L127: 66800
A128: 100 | B128: 344000 | C128: 347000 | D128: 11240 | E128: 8160 | F128: 6530 | G128: 4920 | H128: 3310 | I128: 1680 | J128: 0 | K128: 0 | L128: 67800
A130: 101 | B130: 347000 | C130: 350000 | D130: 11490 | E130: 8280 | F130: 6660 | G130: 5040 | H130: 3430 | I130: 1810 | J130: 190 | K130: 0 | L130: 68800
A131: 102 | B131: 350000 | C131: 353000 | D131: 11730 | E131: 8500 | F131: 6780 | G131: 5170 | H131: 3550 | I131: 1930 | J131: 320 | K131: 0 | L131: 69800
A132: 103 | B132: 353000 | C132: 356000 | D132: 11980 | E132: 8750 | F132: 6900 | G132: 5290 | H132: 3680 | I132: 2050 | J132: 440 | K132: 0 | L132: 70900
A133: 104 | B133: 356000 | C133: 359000 | D133: 12220 | E133: 9000 | F133: 7020 | G133: 5410 | H133: 3800 | I133: 2170 | J133: 560 | K133: 0 | L133: 71900
A134: 105 | B134: 359000 | C134: 362000 | D134: 12470 | E134: 9240 | F134: 7150 | G134: 5530 | H134: 3920 | I134: 2300 | J134: 680 | K134: 0 | L134: 72900
A136: 106 | B136: 362000 | C136: 365000 | D136: 12710 | E136: 9490 | F136: 7270 | G136: 5660 | H136: 4040 | I136: 2420 | J136: 810 | K136: 0 | L136: 73900
A137: 107 | B137: 365000 | C137: 368000 | D137: 12960 | E137: 9730 | F137: 7390 | G137: 5780 | H137: 4170 | I137: 2540 | J137: 930 | K137: 0 | L137: 74900
A138: 108 | B138: 368000 | C138: 371000 | D138: 13200 | E138: 9980 | F138: 7510 | G138: 5900 | H138: 4290 | I138: 2660 | J138: 1050 | K138: 0 | L138: 76000
A139: 109 | B139: 371000 | C139: 374000 | D139: 13450 | E139: 10220 | F139: 7640 | G139: 6020 | H139: 4410 | I139: 2790 | J139: 1170 | K139: 0 | L139: 76900
A140: 110 | B140: 374000 | C140: 377000 | D140: 13690 | E140: 10470 | F140: 7760 | G140: 6150 | H140: 4530 | I140: 2910 | J140: 1300 | K140: 0 | L140: 77800
A142: 111 | B142: 377000 | C142: 380000 | D142: 13940 | E142: 10710 | F142: 7880 | G142: 6270 | H142: 4660 | I142: 3030 | J142: 1420 | K142: 0 | L142: 78700
A143: 112 | B143: 380000 | C143: 383000 | D143: 14180 | E143: 10960 | F143: 8000 | G143: 6390 | H143: 4780 | I143: 3150 | J143: 1540 | K143: 0 | L143: 79600
A144: 113 | B144: 383000 | C144: 386000 | D144: 14430 | E144: 11200 | F144: 8130 | G144: 6510 | H144: 4900 | I144: 3280 | J144: 1660 | K144: 0 | L144: 80600
A145: 114 | B145: 386000 | C145: 389000 | D145: 14670 | E145: 11450 | F145: 8250 | G145: 6640 | H145: 5020 | I145: 3400 | J145: 1790 | K145: 170 | L145: 82000
A146: 115 | B146: 389000 | C146: 392000 | D146: 14920 | E146: 11690 | F146: 8450 | G146: 6760 | H146: 5150 | I146: 3520 | J146: 1910 | K146: 300 | L146: 83600
A148: 116 | B148: 392000 | C148: 395000 | D148: 15160 | E148: 11940 | F148: 8700 | G148: 6880 | H148: 5270 | I148: 3640 | J148: 2030 | K148: 420 | L148: 85400
A149: 117 | B149: 395000 | C149: 398000 | D149: 15410 | E149: 12180 | F149: 8940 | G149: 7000 | H149: 5390 | I149: 3770 | J149: 2150 | K149: 540 | L149: 87100
A150: 118 | B150: 398000 | C150: 401000 | D150: 15650 | E150: 12430 | F150: 9190 | G150: 7130 | H150: 5510 | I150: 3890 | J150: 2280 | K150: 660 | L150: 88700
A151: 119 | B151: 401000 | C151: 404000 | D151: 15900 | E151: 12670 | F151: 9430 | G151: 7250 | H151: 5640 | I151: 4010 | J151: 2400 | K151: 790 | L151: 90500
A152: 120 | B152: 404000 | C152: 407000 | D152: 16140 | E152: 12920 | F152: 9680 | G152: 7370 | H152: 5760 | I152: 4140 | J152: 2520 | K152: 910 | L152: 92200
A154: 121 | B154: 407000 | C154: 410000 | D154: 16390 | E154: 13160 | F154: 9920 | G154: 7490 | H154: 5880 | I154: 4260 | J154: 2640 | K154: 1030 | L154: 93800
A155: 122 | B155: 410000 | C155: 413000 | D155: 16630 | E155: 13410 | F155: 10170 | G155: 7620 | H155: 6000 | I155: 4380 | J155: 2770 | K155: 1150 | L155: 95600
A156: 123 | B156: 413000 | C156: 416000 | D156: 16880 | E156: 13650 | F156: 10410 | G156: 7740 | H156: 6130 | I156: 4500 | J156: 2890 | K156: 1280 | L156: 97300
A157: 124 | B157: 416000 | C157: 419000 | D157: 17120 | E157: 13900 | F157: 10660 | G157: 7860 | H157: 6250 | I157: 4630 | J157: 3010 | K157: 1400 | L157: 98900
A158: 125 | B158: 419000 | C158: 422000 | D158: 17370 | E158: 14140 | F158: 10900 | G158: 7980 | H158: 6370 | I158: 4750 | J158: 3130 | K158: 1520 | L158: 100700
A160: 126 | B160: 422000 | C160: 425000 | D160: 17610 | E160: 14390 | F160: 11150 | G160: 8110 | H160: 6490 | I160: 4870 | J160: 3260 | K160: 1640 | L160: 102400
A161: 127 | B161: 425000 | C161: 428000 | D161: 17860 | E161: 14630 | F161: 11390 | G161: 8230 | H161: 6620 | I161: 4990 | J161: 3380 | K161: 1770 | L161: 104000
A162: 128 | B162: 428000 | C162: 431000 | D162: 18100 | E162: 14880 | F162: 11640 | G162: 8400 | H162: 6740 | I162: 5120 | J162: 3500 | K162: 1890 | L162: 105800
A163: 129 | B163: 431000 | C163: 434000 | D163: 18350 | E163: 15120 | F163: 11880 | G163: 8650 | H163: 6860 | I163: 5240 | J163: 3620 | K163: 2010 | L163: 107500
A164: 130 | B164: 434000 | C164: 437000 | D164: 18590 | E164: 15370 | F164: 12130 | G164: 8890 | H164: 6980 | I164: 5360 | J164: 3750 | K164: 2130 | L164: 109100
A166: 131 | B166: 437000 | C166: 440000 | D166: 18840 | E166: 15610 | F166: 12370 | G166: 9140 | H166: 7110 | I166: 5480 | J166: 3870 | K166: 2260 | L166: 110900
A167: 132 | B167: 440000 | C167: 443000 | D167: 19080 | E167: 15860 | F167: 12620 | G167: 9380 | H167: 7230 | I167: 5610 | J167: 3990 | K167: 2380 | L167: 112600
A168: 133 | B168: 443000 | C168: 446000 | D168: 19330 | E168: 16100 | F168: 12860 | G168: 9630 | H168: 7350 | I168: 5730 | J168: 4110 | K168: 2500 | L168: 114200
A169: 134 | B169: 446000 | C169: 449000 | D169: 19570 | E169: 16350 | F169: 13110 | G169: 9870 | H169: 7470 | I169: 5850 | J169: 4240 | K169: 2620 | L169: 116000
A170: 135 | B170: 449000 | C170: 452000 | D170: 19860 | E170: 16590 | F170: 13350 | G170: 10120 | H170: 7600 | I170: 5970 | J170: 4360 | K170: 2750 | L170: 117600
A172: 136 | B172: 452000 | C172: 455000 | D172: 20350 | E172: 16840 | F172: 13600 | G172: 10360 | H172: 7720 | I172: 6100 | J172: 4480 | K172: 2870 | L172: 119400
A173: 137 | B173: 455000 | C173: 458000 | D173: 20840 | E173: 17080 | F173: 13840 | G173: 10610 | H173: 7840 | I173: 6220 | J173: 4600 | K173: 2990 | L173: 121100
A174: 138 | B174: 458000 | C174: 461000 | D174: 21330 | E174: 17330 | F174: 14090 | G174: 10850 | H174: 7960 | I174: 6340 | J174: 4730 | K174: 3110 | L174: 122700
A175: 139 | B175: 461000 | C175: 464000 | D175: 21820 | E175: 17570 | F175: 14330 | G175: 11100 | H175: 8090 | I175: 6460 | J175: 4850 | K175: 3240 | L175: 124500
A176: 140 | B176: 464000 | C176: 467000 | D176: 22310 | E176: 17820 | F176: 14580 | G176: 11340 | H176: 8210 | I176: 6590 | J176: 4970 | K176: 3360 | L176: 126200
A178: 141 | B178: 467000 | C178: 470000 | D178: 22800 | E178: 18060 | F178: 14820 | G178: 11590 | H178: 8360 | I178: 6710 | J178: 5090 | K178: 3480 | L178: 127800
A179: 142 | B179: 470000 | C179: 473000 | D179: 23290 | E179: 18310 | F179: 15070 | G179: 11830 | H179: 8610 | I179: 6830 | J179: 5220 | K179: 3600 | L179: 129600
A180: 143 | B180: 473000 | C180: 476000 | D180: 23780 | E180: 18550 | F180: 15320 | G180: 12080 | H180: 8850 | I180: 6950 | J180: 5340 | K180: 3730 | L180: 131200
A181: 144 | B181: 476000 | C181: 479000 | D181: 24270 | E181: 18800 | F181: 15560 | G181: 12320 | H181: 9100 | I181: 7080 | J181: 5460 | K181: 3850 | L181: 132800
A182: 145 | B182: 479000 | C182: 482000 | D182: 24760 | E182: 19040 | F182: 15810 | G182: 12570 | H182: 9340 | I182: 7200 | J182: 5580 | K182: 3970 | L182: 134500
A184: 146 | B184: 482000 | C184: 485000 | D184: 25250 | E184: 19290 | F184: 16050 | G184: 12810 | H184: 9590 | I184: 7320 | J184: 5710 | K184: 4090 | L184: 136100
A185: 147 | B185: 485000 | C185: 488000 | D185: 25740 | E185: 19530 | F185: 16300 | G185: 13060 | H185: 9830 | I185: 7440 | J185: 5830 | K185: 4220 | L185: 137600
A186: 148 | B186: 488000 | C186: 491000 | D186: 26230 | E186: 19780 | F186: 16540 | G186: 13300 | H186: 10080 | I186: 7570 | J186: 5950 | K186: 4340 | L186: 139300
A187: 149 | B187: 491000 | C187: 494000 | D187: 26720 | E187: 20260 | F187: 16790 | G187: 13550 | H187: 10320 | I187: 7690 | J187: 6070 | K187: 4460 | L187: 140900
A188: 150 | B188: 494000 | C188: 497000 | D188: 27210 | E188: 20750 | F188: 17030 | G188: 13790 | H188: 10570 | I188: 7810 | J188: 6200 | K188: 4580 | L188: 142500
A190: 151 | B190: 497000 | C190: 500000 | D190: 27700 | E190: 21240 | F190: 17280 | G190: 14040 | H190: 10810 | I190: 7930 | J190: 6320 | K190: 4710 | L190: 144100
A191: 152 | B191: 500000 | C191: 503000 | D191: 28190 | E191: 21730 | F191: 17520 | G191: 14280 | H191: 11060 | I191: 8060 | J191: 6440 | K191: 4830 | L191: 145700
A192: 153 | B192: 503000 | C192: 506000 | D192: 28680 | E192: 22220 | F192: 17770 | G192: 14530 | H192: 11300 | I192: 8180 | J192: 6570 | K192: 4950 | L192: 147300
A193: 154 | B193: 506000 | C193: 509000 | D193: 29170 | E193: 22710 | F193: 18010 | G193: 14770 | H193: 11550 | I193: 8310 | J193: 6690 | K193: 5070 | L193: 149000
A194: 155 | B194: 509000 | C194: 512000 | D194: 29660 | E194: 23200 | F194: 18260 | G194: 15020 | H194: 11790 | I194: 8560 | J194: 6810 | K194: 5200 | L194: 150500
A196: 156 | B196: 512000 | C196: 515000 | D196: 30150 | E196: 23690 | F196: 18500 | G196: 15260 | H196: 12040 | I196: 8800 | J196: 6930 | K196: 5320 | L196: 152100
A197: 157 | B197: 515000 | C197: 518000 | D197: 30640 | E197: 24180 | F197: 18750 | G197: 15510 | H197: 12280 | I197: 9050 | J197: 7060 | K197: 5440 | L197: 153800
A198: 158 | B198: 518000 | C198: 521000 | D198: 31130 | E198: 24670 | F198: 18990 | G198: 15750 | H198: 12530 | I198: 9290 | J198: 7180 | K198: 5560 | L198: 155400
A199: 159 | B199: 521000 | C199: 524000 | D199: 31620 | E199: 25160 | F199: 19240 | G199: 16000 | H199: 12770 | I199: 9540 | J199: 7300 | K199: 5690 | L199: 156900
A200: 160 | B200: 524000 | C200: 527000 | D200: 32110 | E200: 25650 | F200: 19480 | G200: 16240 | H200: 13020 | I200: 9780 | J200: 7420 | K200: 5810 | L200: 158600
A202: 161 | B202: 527000 | C202: 530000 | D202: 32600 | E202: 26140 | F202: 19730 | G202: 16490 | H202: 13260 | I202: 10030 | J202: 7550 | K202: 5930 | L202: 160200
A203: 162 | B203: 530000 | C203: 533000 | D203: 33090 | E203: 26630 | F203: 20160 | G203: 16730 | H203: 13510 | I203: 10270 | J203: 7670 | K203: 6050 | L203: 161600
A204: 163 | B204: 533000 | C204: 536000 | D204: 33580 | E204: 27120 | F204: 20650 | G204: 16980 | H204: 13750 | I204: 10520 | J204: 7790 | K204: 6180 | L204: 163200
A205: 164 | B205: 536000 | C205: 539000 | D205: 34070 | E205: 27610 | F205: 21140 | G205: 17220 | H205: 14000 | I205: 10760 | J205: 7910 | K205: 6300 | L205: 164600
A206: 165 | B206: 539000 | C206: 542000 | D206: 34560 | E206: 28100 | F206: 21630 | G206: 17470 | H206: 14240 | I206: 11010 | J206: 8040 | K206: 6420 | L206: 166000
A208: 166 | B208: 542000 | C208: 545000 | D208: 35050 | E208: 28590 | F208: 22130 | G208: 17710 | H208: 14490 | I208: 11250 | J208: 8160 | K208: 6540 | L208: 167500
A209: 167 | B209: 545000 | C209: 548000 | D209: 35540 | E209: 29080 | F209: 22620 | G209: 17960 | H209: 14730 | I209: 11500 | J209: 8280 | K209: 6670 | L209: 169000
A210: 168 | B210: 548000 | C210: 551000 | D210: 36030 | E210: 29570 | F210: 23110 | G210: 18200 | H210: 14980 | I210: 11740 | J210: 8500 | K210: 6790 | L210: 170500
A211: 169 | B211: 551000 | C211: 554000 | D211: 36570 | E211: 30110 | F211: 23650 | G211: 18480 | H211: 15240 | I211: 12020 | J211: 8780 | K211: 6920 | L211: 171900
A212: 170 | B212: 554000 | C212: 557000 | D212: 37120 | E212: 30660 | F212: 24200 | G212: 18760 | H212: 15520 | I212: 12290 | J212: 9060 | K212: 7060 | L212: 173400
A214: 171 | B214: 557000 | C214: 560000 | D214: 37670 | E214: 31210 | F214: 24750 | G214: 19030 | H214: 15790 | I214: 12570 | J214: 9330 | K214: 7200 | L214: 174900
A215: 172 | B215: 560000 | C215: 563000 | D215: 38230 | E215: 31760 | F215: 25300 | G215: 19310 | H215: 16070 | I215: 12840 | J215: 9610 | K215: 7330 | L215: 176300
A216: 173 | B216: 563000 | C216: 566000 | D216: 38780 | E216: 32310 | F216: 25850 | G216: 19580 | H216: 16350 | I216: 13120 | J216: 9880 | K216: 7470 | L216: 177900
A217: 174 | B217: 566000 | C217: 569000 | D217: 39330 | E217: 32870 | F217: 26400 | G217: 19930 | H217: 16620 | I217: 13400 | J217: 10160 | K217: 7610 | L217: 179300
A218: 175 | B218: 569000 | C218: 572000 | D218: 39880 | E218: 33420 | F218: 26950 | G218: 20480 | H218: 16900 | I218: 13670 | J218: 10430 | K218: 7750 | L218: 180700
A220: 176 | B220: 572000 | C220: 575000 | D220: 40430 | E220: 33970 | F220: 27510 | G220: 21030 | H220: 17170 | I220: 13950 | J220: 10710 | K220: 7880 | L220: 182200
A221: 177 | B221: 575000 | C221: 578000 | D221: 40980 | E221: 34520 | F221: 28060 | G221: 21580 | H221: 17450 | I221: 14220 | J221: 10990 | K221: 8030 | L221: 183700
A222: 178 | B222: 578000 | C222: 581000 | D222: 41530 | E222: 35070 | F222: 28610 | G222: 22140 | H222: 17720 | I222: 14500 | J222: 11260 | K222: 8160 | L222: 185200
A223: 179 | B223: 581000 | C223: 584000 | D223: 42090 | E223: 35620 | F223: 29160 | G223: 22690 | H223: 18000 | I223: 14770 | J223: 11540 | K223: 8300 | L223: 186600
A224: 180 | B224: 584000 | C224: 587000 | D224: 42640 | E224: 36170 | F224: 29710 | G224: 23240 | H224: 18280 | I224: 15050 | J224: 11810 | K224: 8580 | L224: 188100
A226: 181 | B226: 587000 | C226: 590000 | D226: 43190 | E226: 36730 | F226: 30260 | G226: 23790 | H226: 18550 | I226: 15330 | J226: 12090 | K226: 8850 | L226: 189600
A227: 182 | B227: 590000 | C227: 593000 | D227: 43740 | E227: 37280 | F227: 30810 | G227: 24340 | H227: 18830 | I227: 15600 | J227: 12360 | K227: 9130 | L227: 191000
A228: 183 | B228: 593000 | C228: 596000 | D228: 44290 | E228: 37830 | F228: 31370 | G228: 24890 | H228: 19100 | I228: 15880 | J228: 12640 | K228: 9400 | L228: 192600
A229: 184 | B229: 596000 | C229: 599000 | D229: 44840 | E229: 38380 | F229: 31920 | G229: 25440 | H229: 19380 | I229: 16150 | J229: 12920 | K229: 9680 | L229: 194000
A230: 185 | B230: 599000 | C230: 602000 | D230: 45390 | E230: 38930 | F230: 32470 | G230: 25990 | H230: 19650 | I230: 16430 | J230: 13190 | K230: 9950 | L230: 195400
A232: 186 | B232: 602000 | C232: 605000 | D232: 45950 | E232: 39480 | F232: 33020 | G232: 26550 | H232: 20080 | I232: 16700 | J232: 13470 | K232: 10230 | L232: 197000
A233: 187 | B233: 605000 | C233: 608000 | D233: 46500 | E233: 40030 | F233: 33570 | G233: 27100 | H233: 20630 | I233: 16980 | J233: 13740 | K233: 10510 | L233: 198400
A234: 188 | B234: 608000 | C234: 611000 | D234: 47050 | E234: 40580 | F234: 34120 | G234: 27650 | H234: 21190 | I234: 17250 | J234: 14020 | K234: 10780 | L234: 199900
A235: 189 | B235: 611000 | C235: 614000 | D235: 47600 | E235: 41140 | F235: 34670 | G235: 28200 | H235: 21740 | I235: 17530 | J235: 14290 | K235: 11060 | L235: 201300
A236: 190 | B236: 614000 | C236: 617000 | D236: 48150 | E236: 41690 | F236: 35220 | G236: 28750 | H236: 22290 | I236: 17810 | J236: 14570 | K236: 11330 | L236: 202800
A238: 191 | B238: 617000 | C238: 620000 | D238: 48700 | E238: 42240 | F238: 35780 | G238: 29300 | H238: 22840 | I238: 18080 | J238: 14850 | K238: 11610 | L238: 204300
A239: 192 | B239: 620000 | C239: 623000 | D239: 49250 | E239: 42790 | F239: 36330 | G239: 29850 | H239: 23390 | I239: 18360 | J239: 15120 | K239: 11880 | L239: 205700
... 129 more rows
